bitfinex/quotes_SOLUSD_20241024
["timestamp","ask_amount","ask_price","bid_price","bid_amount"]
[1729766168607,0.25098,172.87,172.83,29.10525638]
[1729766168900,0.25098,172.89,172.85,29.10525638]
[1729766171602,0.25098,172.89,172.84,29.10525638]
[1729766171981,29.35623638,172.89,172.83,29.10525638]
[1729766174408,0.25098,172.87,172.82,29.10525638]
[1729766177997,24.027864,172.87,172.82,29.10525638]
[1729766178201,29.10525638,172.86,172.8,29.10525638]
[1729766178407,0.25098,172.85,172.8,29.10525638]
[1729766180382,0.1,172.82,172.73,16.2732]
[1729766180586,0.25098,172.8,172.75,29.10525638]
[1729766180798,0.25098,172.8,172.78,29.10525638]
[1729766181100,29.662284,172.85,172.73,16.2732]
[1729766181101,29.10525638,172.85,172.79,29.10525638]
[1729766182396,0.25098,172.84,172.79,29.10525638]
[1729766182703,24.027864,172.81,172.73,16.2732]
[1729766182901,0.25098,172.81,172.76,29.10525638]
[1729766183200,0.25098,172.81,172.73,16.2732]
[1729766183201,0.25098,172.81,172.77,29.10525638]
[1729766183785,0.25098,172.81,172.73,16.2732]
[1729766183987,0.25098,172.81,172.77,29.10525638]
[1729766185197,0.25098,172.81,172.78,29.10525638]
[1729766186119,0.25098,172.81,172.77,29.10525638]
[1729766186782,0.25098,172.81,172.73,16.2732]
[1729766186990,0.25098,172.81,172.76,29.10525638]
[1729766187202,45.68775638,172.79,172.66,27.23570474]
[1729766187403,0.25098,172.78,172.73,29.10525638]
[1729766187592,0.25098,172.78,172.74,29.10525638]
[1729766187801,0.12549,172.78,172.76,29.10525638]
[1729766188604,0.12549,172.78,172.75,29.10525638]
[1729766189193,0.12549,172.78,172.76,29.10525638]
[1729766189394,0.12549,172.78,172.75,29.10525638]
[1729766190887,0.25098,172.79,172.74,29.10525638]
[1729766191299,29.10525638,172.8,172.75,29.10525638]
[1729766191300,0.25098,172.8,172.75,29.10525638]
[1729766192013,0.25098,172.8,172.66,18.5799585]
[1729766192014,35.14333638,172.8,172.74,29.10525638]
[1729766192207,29.35623638,172.8,172.74,29.10525638]
[1729766192515,0.25098,172.8,172.75,18.72809672]
[1729766195508,0.25098,172.8,172.76,18.72809672]
[1729766196607,0.25098,172.8,172.75,18.72809672]
[1729766199693,0.12549,172.8,172.75,18.72809672]
[1729766200092,0.12549,172.79,172.75,18.72809672]
[1729766201009,0.12549,172.79,172.7,74.91238688]
[1729766201207,0.12549,172.79,172.75,18.72809672]
[1729766202320,42.63047072,172.79,172.67,20.0]
[1729766202519,0.12549,172.78,172.74,18.72809672]
[1729766202895,0.25098,172.79,172.74,18.72809672]
[1729766203090,0.25098,172.79,172.66,18.5799585]
[1729766203091,42.75596072,172.77,172.66,15.5648]
[1729766203404,0.12549,172.76,172.71,18.72809672]
[1729766203914,0.12549,172.76,172.72,18.72809672]
[1729766204216,0.25098,172.78,172.73,18.72809672]
[1729766204396,0.25098,172.78,172.66,15.5648]
[1729766204915,18.97907672,172.78,172.72,18.72809672]
[1729766205612,0.25098,172.78,172.73,18.72809672]
[1729766207802,0.25098,172.78,172.66,15.5648]
[1729766208004,0.25098,172.76,172.71,18.72809672]
[1729766208512,0.25098,172.76,172.72,18.72809672]
[1729766208823,0.25098,172.77,172.72,18.72809672]
[1729766211000,0.25098,172.78,172.73,18.72809672]
[1729766212520,0.25098,172.79,172.74,18.72809672]
[1729766213517,0.25098,172.79,172.75,18.72809672]
[1729766214017,0.25098,172.79,172.76,18.72809672]
[1729766214728,0.12549,172.79,172.76,18.72809672]
[1729766215225,0.12549,172.79,172.75,18.72809672]
[1729766216124,0.25098,172.79,172.75,18.72809672]
[1729766219918,0.25098,172.79,172.76,18.72809672]
[1729766220322,6.1457,172.83,172.78,18.72809672]
[1729766220531,6.1457,172.83,172.8,18.72809672]
[1729766220719,12.18369009,172.83,172.79,18.72809672]
[1729766221025,12.18369009,172.83,172.78,18.72809672]
[1729766221231,12.18369009,172.83,172.79,18.72809672]
[1729766221728,0.25098,172.82,172.79,18.72809672]
[1729766222046,0.25098,172.82,172.78,18.72809672]
[1729766222343,0.25098,172.82,172.72,16.4723]
[1729766222629,0.25098,172.82,172.77,18.72809672]
[1729766222932,18.97907672,172.82,172.77,18.72809672]
[1729766223431,0.25098,172.82,172.77,18.72809672]
[1729766224231,0.25098,172.82,172.72,16.4723]
[1729766224232,18.97907672,172.82,172.76,18.72809672]
[1729766225513,0.25098,172.82,172.77,18.72809672]
[1729766226021,0.25098,172.82,172.78,18.72809672]
[1729766227232,0.25098,172.82,172.79,18.72809672]
[1729766227737,22.1992,172.88,172.81,18.72809672]
[1729766227928,46.81169672,172.88,172.82,18.72809672]
[1729766228106,46.71169672,172.88,172.82,18.72809672]
[1729766228730,46.81169672,172.88,172.82,18.72809672]
[1729766228929,24.027864,172.87,172.82,18.72809672]
[1729766229135,30.06409096,172.87,172.82,18.72809672]
[1729766229438,48.79218768,172.87,172.81,18.72809672]
[1729766231818,30.06409096,172.87,172.82,18.72809672]
[1729766232836,30.06409096,172.87,172.83,18.72809672]
[1729766232837,6.28720696,172.87,172.83,18.72809672]
[1729766233038,6.03622696,172.87,172.84,18.72809672]
[1729766234422,0.12549,172.86,172.84,18.72809672]
[1729766234631,0.12549,172.86,172.83,18.72809672]
[1729766236824,0.25098,172.86,172.78,16.5518]
[1729766237038,18.97907672,172.86,172.8,18.72809672]
[1729766237242,0.25098,172.84,172.79,18.72809672]
[1729766237927,9.61502836,172.84,172.78,9.36404836]
[1729766238137,18.97907672,172.84,172.78,18.72809672]
[1729766238750,0.25098,172.84,172.79,18.72809672]
[1729766240131,0.25098,172.84,172.78,18.72809672]
[1729766240345,18.97907672,172.84,172.78,18.72809672]
[1729766243327,18.72809672,172.83,172.77,18.72809672]
[1729766243528,0.25098,172.82,172.77,18.72809672]
[1729766243741,18.97907672,172.82,172.76,18.72809672]
[1729766250848,18.97907672,172.82,172.77,18.72809672]
[1729766251048,0.25098,172.82,172.77,18.72809672]
[1729766253681,0.25098,172.82,172.77,18.72809672]
[1729766257073,18.97907672,172.82,172.76,18.72809672]
[1729766258871,0.25098,172.82,172.77,18.72809672]
[1729766262161,0.25098,172.82,172.76,18.72809672]
[1729766262670,18.97907672,172.82,172.76,18.72809672]
[1729766265367,18.97907672,172.8,172.7,2.87750024]
[1729766265663,0.25098,172.78,172.69,16.4514]
[1729766265831,0.25098,172.78,172.74,18.72809672]
[1729766266732,0.25098,172.78,172.69,16.4514]
[1729766266936,0.25098,172.78,172.73,18.72809672]
[1729766267733,0.25098,172.78,172.67,2.97902327]
[1729766267933,0.25098,172.78,172.73,18.72809672]
[1729766268659,0.25098,172.78,172.74,18.72809672]
[1729766269162,0.25098,172.78,172.75,18.72809672]
[1729766271958,0.25098,172.78,172.66,20.0]
[1729766272137,0.25098,172.78,172.74,18.72809672]
[1729766275152,0.25098,172.78,172.73,18.72809672]
[1729766281352,18.97907672,172.78,172.72,18.72809672]
[1729766285273,18.72809672,172.76,172.65,15.8055728]
[1729766285471,0.25098,172.75,172.7,18.72809672]
[1729766286076,0.25098,172.75,172.69,18.72809672]
[1729766286669,0.25098,172.75,172.7,18.72809672]
[1729766288361,0.25098,172.75,172.7,18.7379852]
[1729766295286,6.03868487,172.77,172.73,18.7379852]
[1729766295472,20.1,172.81,172.74,18.7379852]
[1729766295780,18.7379852,172.78,172.72,18.7379852]
[1729766296284,18.7379852,172.77,172.65,18.73571304]
[1729766296581,0.25098,172.75,172.7,18.7379852]
[1729766297479,0.25098,172.76,172.71,18.7379852]
[1729766299581,18.9889652,172.76,172.7,18.7379852]
[1729766301567,18.9889652,172.76,172.65,18.73571304]
[1729766301781,18.9889652,172.76,172.7,18.7379852]
[1729766303266,0.25098,172.74,172.69,18.7379852]
[1729766304292,0.25098,172.72,172.67,18.7379852]
[1729766304470,0.25098,172.72,172.65,15.8055728]
[1729766304471,0.25098,172.72,172.68,18.7379852]
[1729766304865,0.25098,172.73,172.68,18.7379852]
[1729766307877,0.25098,172.71,172.65,15.8055728]
[1729766308172,0.25098,172.71,172.66,18.7379852]
[1729766312066,0.25098,172.71,172.68,18.7379852]
[1729766312374,0.12549,172.71,172.68,18.7379852]
[1729766312683,6.03865017,172.75,172.7,18.7379852]
[1729766312883,6.03865017,172.75,172.71,18.7379852]
[1729766313096,21.5823,172.8,172.72,18.7379852]
[1729766313276,18.7379852,172.79,172.74,18.7379852]
[1729766313466,18.7379852,172.78,172.73,18.7379852]
[1729766314572,0.25098,172.77,172.73,18.7379852]
[1729766314787,0.25098,172.77,172.72,18.7379852]
[1729766319294,0.25098,172.78,172.73,18.7379852]
[1729766321885,0.25098,172.79,172.74,18.7379852]
[1729766322103,18.9889652,172.79,172.74,18.7379852]
[1729766322289,18.9889652,172.79,172.74,9.3689926]
[1729766322492,0.25098,172.77,172.72,18.7379852]
[1729766323104,18.9889652,172.77,172.66,43.776884]
[1729766323283,18.9889652,172.77,172.71,18.7379852]
[1729766325701,0.25098,172.77,172.71,18.7379852]
[1729766325897,18.9889652,172.77,172.71,18.7379852]
[1729766328422,0.25098,172.77,172.71,18.7379852]
[1729766328610,18.9889652,172.77,172.71,18.7379852]
[1729766333000,0.25098,172.77,172.72,18.7379852]
[1729766335209,0.25098,172.77,172.71,18.7379852]
[1729766339819,18.9889652,172.77,172.71,18.7379852]
[1729766341725,0.25098,172.77,172.71,18.7379852]
[1729766342013,0.25098,172.75,172.65,15.8055728]
[1729766342200,0.25098,172.74,172.69,18.7379852]
[1729766345217,18.9889652,172.74,172.69,18.7379852]
[1729766345513,0.25098,172.74,172.69,18.7379852]
[1729766347691,18.9889652,172.74,172.69,18.7379852]
[1729766348014,18.9889652,172.74,172.68,18.7379852]
[1729766349022,18.7379852,172.69,172.65,0.6016728]
[1729766349308,0.25098,172.7,172.65,0.6016728]
[1729766349309,18.8634752,172.66,172.65,0.6016728]
[1729766349916,41.4642652,172.66,172.65,0.6016728]
[1729766351100,0.25098,172.7,172.65,19.339658]
[1729766351494,18.9889652,172.7,172.65,19.339658]
[1729766352712,18.9889652,172.7,172.65,0.6016728]
[1729766353020,0.25098,172.68,172.65,0.6016728]
[1729766354119,18.9889652,172.68,172.65,0.6016728]
[1729766355315,0.25098,172.68,172.65,0.6016728]
[1729766356606,0.25098,172.68,172.65,19.339658]
[1729766358707,26.04052975,172.71,172.67,18.7379852]
[1729766358906,6.04052975,172.71,172.65,0.6016728]
[1729766359104,6.04052975,172.71,172.7,18.7379852]
[1729766359509,6.04052975,172.71,172.69,18.7379852]
[1729766360197,0.25098,172.7,172.67,18.7379852]
[1729766363022,0.25098,172.7,172.68,18.7379852]
[1729766365420,0.25098,172.7,172.65,0.6016728]
[1729766365610,0.25098,172.7,172.67,18.7379852]
[1729766369117,6.04052975,172.71,172.69,18.7379852]
[1729766369319,6.04052975,172.71,172.7,18.7379852]
[1729766370399,6.29150975,172.71,172.7,18.7379852]
[1729766371021,21.7105,172.77,172.7,18.7379852]
[1729766371219,27.4987,172.77,172.72,18.7379852]
[1729766371406,6.03760257,172.76,172.73,18.7379852]
[1729766371610,6.03760257,172.76,172.75,18.7379852]
[1729766372906,6.28858257,172.76,172.75,18.7379852]
[1729766380925,6.28858257,172.76,172.74,18.7379852]
[1729766380926,0.12549,172.75,172.74,18.7379852]
[1729766381123,0.25098,172.75,172.73,18.7379852]
[1729766381805,0.25098,172.75,172.65,0.6016728]
[1729766382325,0.25098,172.75,172.71,18.7379852]
[1729766383129,6.03978,172.75,172.71,18.7379852]
[1729766385018,6.03978,172.75,172.7,18.7379852]
[1729766385328,6.03978,172.75,172.71,18.7379852]
[1729766385926,6.03978,172.75,172.65,0.6016728]
[1729766385927,23.776884,172.74,172.65,0.6016728]
[1729766386123,0.25098,172.73,172.69,18.7379852]
[1729766386430,6.2882063,172.73,172.7,18.7379852]
[1729766386637,6.2882063,172.73,172.68,18.7379852]
[1729766388033,6.2882063,172.73,172.69,18.7379852]
[1729766388234,6.2882063,172.73,172.68,18.7379852]
[1729766390619,25.0261915,172.73,172.68,18.7379852]
[1729766395839,25.0261915,172.73,172.65,0.6016728]
[1729766396046,25.0261915,172.73,172.68,18.7379852]
[1729766396225,30.8154915,172.73,172.65,0.6016728]
[1729766396425,30.8154915,172.73,172.67,18.7379852]
[1729766397039,30.8154915,172.73,172.68,18.7379852]
[1729766398146,12.0775063,172.73,172.68,18.7379852]
[1729766400629,18.7379852,172.72,172.67,18.7379852]
[1729766400939,0.25098,172.71,172.67,18.7379852]
[1729766401539,0.25098,172.72,172.67,18.7379852]
[1729766404430,0.12549,172.7,172.65,0.6016728]
[1729766404627,18.8634752,172.7,172.65,19.339658]
[1729766404835,0.12549,172.7,172.65,19.339658]
[1729766407147,0.12549,172.7,172.66,18.7379852]
[1729766407363,0.12549,172.71,172.66,18.7379852]
[1729766407948,18.8634752,172.71,172.65,19.339658]
[1729766410739,18.8634752,172.71,172.65,0.6016728]
[1729766410938,0.12549,172.71,172.65,0.6016728]
[1729766411145,0.12549,172.71,172.66,18.7379852]
[1729766412142,6.0372263,172.73,172.7,18.7379852]
[1729766412327,25.75024364,172.78,172.72,18.7379852]
[1729766412529,31.78452986,172.78,172.73,18.7379852]
[1729766412724,37.57232986,172.78,172.73,18.7379852]
[1729766412942,37.57232986,172.78,172.72,18.7379852]
[1729766413144,18.7379852,172.73,172.68,18.7379852]
[1729766413732,18.7379852,172.74,172.68,18.7379852]
[1729766414129,0.12549,172.73,172.68,18.7379852]
[1729766414327,18.8634752,172.71,172.66,18.7379852]
[1729766414539,0.12549,172.7,172.66,18.7379852]
[1729766415051,0.25098,172.71,172.66,18.7379852]
[1729766415230,0.25098,172.71,172.65,0.6016728]
[1729766415231,0.25098,172.69,172.65,0.6016728]
[1729766415644,0.25098,172.69,172.65,19.339658]
[1729766415843,18.9889652,172.69,172.65,0.6016728]
[1729766416136,0.25098,172.69,172.65,0.6016728]
[1729766416342,0.25098,172.69,172.65,19.339658]
[1729766416547,0.12549,172.7,172.66,18.7379852]
[1729766416750,0.25098,172.7,172.65,19.339658]
[1729766417838,18.9889652,172.7,172.65,19.339658]
[1729766418346,18.7379852,172.69,172.65,0.6016728]
[1729766418546,0.12549,172.66,172.65,0.6016728]
[1729766419548,0.12549,172.68,172.65,0.6016728]
[1729766420447,0.25098,172.68,172.65,0.6016728]
[1729766420654,18.9889652,172.68,172.65,0.6016728]
[1729766421449,0.25098,172.68,172.65,0.6016728]
[1729766422557,18.9889652,172.68,172.65,0.6016728]
[1729766423952,18.7379852,172.67,172.65,0.6016728]
[1729766424472,0.12549,172.66,172.65,0.6016728]
[1729766430050,9.4944826,172.66,172.65,0.6016728]
[1729766430256,18.9889652,172.66,172.65,0.6016728]
[1729766431475,48.5575492,172.66,172.65,0.6016728]
[1729766433270,74.59552561,172.66,172.65,0.6016728]
[1729766433872,74.69552561,172.66,172.65,0.6016728]
[1729766434565,74.79552561,172.66,172.65,0.6016728]
[1729766437770,0.1,172.63,172.53,18.7379852]
[1729766437953,0.25098,172.58,172.53,18.7379852]
[1729766439073,0.25098,172.58,172.52,22.4329]
[1729766439266,0.25098,172.58,172.53,18.7379852]
[1729766439466,0.25098,172.58,172.54,18.7379852]
[1729766440381,0.25098,172.58,172.52,22.4329]
[1729766440680,0.25098,172.58,172.52,16.2431]
[1729766440884,18.9889652,172.58,172.53,18.7379852]
[1729766441676,0.25098,172.58,172.54,18.7379852]
[1729766443282,0.25098,172.58,172.52,16.2431]
[1729766443480,0.25098,172.58,172.54,18.7379852]
[1729766444392,0.25098,172.58,172.53,18.7379852]
[1729766444393,18.9889652,172.58,172.53,18.7379852]
[1729766446678,18.7379852,172.57,172.48,13.0496112]
[1729766446986,18.9889652,172.58,172.53,18.7379852]
[1729766447278,0.25098,172.58,172.54,18.7379852]
[1729766447492,6.03636155,172.6,172.57,18.7379852]
[1729766447699,46.9437852,172.64,172.58,18.7379852]
[1729766447981,24.77595833,172.63,172.58,18.7379852]
[1729766448993,0.25098,172.62,172.57,18.7379852]
[1729766449283,21.6667,172.68,172.61,18.7379852]
[1729766449491,15.8757,172.68,172.63,18.7379852]
[1729766449673,6.03942523,172.68,172.65,18.7379852]
[1729766450187,6.03942523,172.68,172.6,90.8891408]
[1729766450188,6.03942523,172.68,172.64,18.7379852]
[1729766450385,15.9757,172.72,172.66,18.7379852]
[1729766450386,15.8757,172.72,172.66,18.7379852]
[1729766450563,15.8757,172.72,172.67,18.7379852]
[1729766450765,6.03881018,172.71,172.67,18.7379852]
[1729766450991,6.03881018,172.71,172.6,90.8891408]
[1729766450992,6.03881018,172.71,172.66,18.7379852]
[1729766451583,0.25098,172.7,172.66,18.7379852]
[1729766452787,0.25098,172.7,172.65,18.7379852]
[1729766452970,0.12549,172.68,172.64,18.7379852]
[1729766454584,0.25098,172.68,172.63,18.7379852]
[1729766458687,0.25098,172.68,172.64,18.7379852]
[1729766461188,6.28872909,172.68,172.65,18.7379852]
[1729766464387,6.28872909,172.68,172.6,90.8891408]
[1729766464388,6.28872909,172.68,172.66,18.7379852]
[1729766465093,6.28872909,172.68,172.65,18.7379852]
[1729766465974,15.8757,172.72,172.67,18.7379852]
[1729766466169,21.91356896,172.72,172.68,18.7379852]
[1729766466567,18.7379852,172.71,172.6,96.9722408]
[1729766466786,18.7379852,172.71,172.65,18.7379852]
[1729766467395,0.25098,172.7,172.65,18.7379852]
[1729766467971,18.7379852,172.69,172.64,18.7379852]
[1729766468387,0.25098,172.68,172.64,18.7379852]
[1729766469391,18.9889652,172.66,172.56,21.93]
[1729766469584,18.9889652,172.66,172.61,18.7379852]
[1729766470396,18.9889652,172.66,172.56,21.93]
[1729766470580,18.9889652,172.66,172.61,18.7379852]
[1729766472005,0.25098,172.66,172.61,18.7379852]
[1729766472696,0.25098,172.66,172.56,21.93]
[1729766473080,0.25098,172.66,172.62,18.7379852]
[1729766474904,0.25098,172.66,172.63,18.7379852]
[1729766477287,0.25098,172.66,172.65,18.7379852]
[1729766477501,0.25098,172.66,172.64,18.7379852]
[1729766477899,6.02924878,172.67,172.65,18.7379852]
[1729766478106,15.8757,172.72,172.66,18.7379852]
[1729766478308,6.0278623,172.71,172.67,18.7379852]
[1729766479485,0.25098,172.7,172.67,18.7379852]
[1729766480994,6.04148,172.7,172.67,18.7379852]
[1729766481304,0.25098,172.7,172.67,18.7379852]
[1729766486306,0.25098,172.7,172.6,74.9519408]
[1729766486612,24.7793652,172.7,172.65,18.7379852]
[1729766487094,24.7793652,172.7,172.64,18.7379852]
[1729766487511,6.04138,172.7,172.65,18.7379852]
[1729766490091,0.25098,172.68,172.65,18.7379852]
[1729766493596,0.25098,172.68,172.6,74.9519408]
[1729766493597,0.25098,172.68,172.66,18.7379852]
[1729766494121,0.12549,172.68,172.67,18.7379852]
[1729766495414,0.25098,172.66,172.61,18.7379852]
[1729766495714,0.25098,172.66,172.56,15.8469]
[1729766495715,0.25098,172.66,172.63,18.7379852]
[1729766496015,0.25098,172.66,172.64,18.7379852]
[1729766500022,0.25098,172.66,172.56,15.8469]
[1729766500201,0.25098,172.66,172.62,18.7379852]
[1729766501415,0.25098,172.66,172.63,18.7379852]
[1729766501590,6.04298,172.66,172.63,18.7379852]
[1729766501919,6.04298,172.66,172.62,18.7379852]
[1729766504205,6.04298,172.66,172.56,15.8469]
[1729766504406,24.7809652,172.66,172.6,18.7379852]
[1729766507307,6.04298,172.66,172.61,18.7379852]
[1729766507794,24.7809652,172.66,172.61,18.7379852]
[1729766507996,20.25098,172.64,172.59,18.7379852]
[1729766508204,38.9889652,172.64,172.58,18.7379852]
[1729766508403,38.9889652,172.64,172.59,18.7379852]
[1729766508800,38.9889652,172.64,172.52,22.9733]
[1729766508801,0.25098,172.62,172.58,18.7379852]
[1729766509225,24.027864,172.58,172.51,9.3689926]
[1729766509529,24.027864,172.58,172.51,18.7379852]
[1729766509530,0.25098,172.56,172.51,18.7379852]
[1729766509704,0.25098,172.56,172.51,9.3689926]
[1729766510012,0.25098,172.54,172.51,18.7379852]
[1729766511904,0.25098,172.54,172.5,18.7379852]
[1729766513207,24.7844652,172.55,172.47,16.6584]
[1729766513428,24.7844652,172.55,172.49,18.7379852]
[1729766515212,18.7379852,172.54,172.44,6.4916]
[1729766515522,18.9889652,172.53,172.43,18.43135692]
[1729766515699,18.9889652,172.53,172.47,18.7379852]
[1729766516115,0.25098,172.53,172.48,19.339658]
[1729766516297,18.9889652,172.53,172.48,0.6016728]
[1729766516505,0.25098,172.51,172.48,0.6016728]
[1729766519610,0.12549,172.49,172.48,0.6016728]
[1729766520716,15.4991,172.54,172.48,0.6016728]
[1729766520717,15.4991,172.54,172.48,19.339658]
[1729766520902,6.1239,172.55,172.53,18.7379852]
[1729766521106,12.15729088,172.55,172.53,18.7379852]
[1729766521418,12.15729088,172.55,172.51,18.7379852]
[1729766522224,0.25098,172.54,172.51,18.7379852]
[1729766523319,0.25098,172.54,172.5,18.7379852]
[1729766524302,0.25098,172.54,172.48,0.6016728]
[1729766524506,29.823764,172.54,172.49,18.7379852]
[1729766525106,29.823764,172.54,172.48,0.6016728]
[1729766525107,0.25098,172.52,172.48,0.6016728]
[1729766525524,0.25098,172.52,172.48,19.339658]
[1729766527002,0.25098,172.53,172.49,18.7379852]
[1729766527429,18.9889652,172.51,172.48,0.6016728]
[1729766527637,42.7658492,172.51,172.48,0.6016728]
[1729766527924,0.25098,172.49,172.48,0.6016728]
[1729766531511,6.29012346,172.49,172.48,0.6016728]
[1729766531909,25.02810866,172.49,172.48,0.6016728]
[1729766532316,6.29012346,172.49,172.48,0.6016728]
[1729766533029,6.29012346,172.49,172.44,6.416644]
[1729766533625,18.7379852,172.46,172.33,15.3778]
[1729766533827,0.25098,172.45,172.4,18.7379852]
[1729766535119,6.04988,172.45,172.4,18.7379852]
[1729766535530,0.25098,172.45,172.4,18.7379852]
[1729766536750,6.0844,172.48,172.44,18.7379852]
[1729766537034,0.25098,172.48,172.44,9.3689926]
[1729766537221,0.25098,172.48,172.44,18.7379852]
[1729766538416,18.9889652,172.48,172.39,15.3778]
[1729766538636,18.9889652,172.48,172.42,18.7379852]
[1729766540528,18.9889652,172.48,172.39,15.3778]
[1729766540728,18.9889652,172.48,172.42,18.7379852]
[1729766541217,18.9889652,172.48,172.43,18.7379852]
[1729766541422,0.25098,172.48,172.43,18.7379852]
[1729766541824,0.25098,172.46,172.43,18.7379852]
[1729766542937,0.25098,172.46,172.42,18.7379852]
[1729766544724,0.12549,172.46,172.43,18.7379852]
[1729766546843,0.12549,172.46,172.44,18.7379852]
[1729766547036,6.03585872,172.47,172.45,18.7379852]
[1729766547431,6.03585872,172.47,172.44,18.7379852]
[1729766550734,6.03585872,172.47,172.39,15.3778]
[1729766550932,6.03585872,172.47,172.43,18.7379852]
[1729766555738,6.03585872,172.47,172.42,18.7379852]
[1729766556338,6.03585872,172.47,172.43,18.7379852]
[1729766556947,6.03585872,172.47,172.39,15.3778]
[1729766556948,0.25098,172.46,172.39,15.3778]
[1729766557134,0.25098,172.46,172.41,18.7379852]
[1729766558862,0.25098,172.46,172.39,15.3778]
[1729766559244,6.03990512,172.45,172.41,18.7379852]
[1729766559444,0.12549,172.44,172.41,18.7379852]
[1729766560863,0.12549,172.44,172.42,18.7379852]
[1729766561234,21.3517,172.52,172.43,18.7379852]
[1729766561434,6.0844,172.52,172.47,18.7379852]
[1729766561758,6.03586656,172.51,172.47,18.7379852]
[1729766562165,6.03586656,172.51,172.46,18.7379852]
[1729766562834,0.12549,172.5,172.46,18.7379852]
[1729766564043,18.9889652,172.5,172.44,18.7379852]
[1729766564247,0.12549,172.48,172.44,18.7379852]
[1729766564455,0.12549,172.48,172.43,18.7379852]
[1729766565741,0.12549,172.48,172.4,6.263]
[1729766565942,0.12549,172.48,172.43,18.7379852]
[1729766566846,0.12549,172.48,172.44,18.7379852]
[1729766567252,0.12549,172.48,172.43,18.7379852]
[1729766569965,0.12549,172.48,172.44,18.7379852]
[1729766571850,0.12549,172.48,144.91,0.5]
[1729766571851,18.7379852,172.45,172.36,6.5745]
[1729766572054,0.12549,172.44,172.4,18.7379852]
[1729766573776,0.12549,172.44,172.39,18.7379852]
[1729766574268,18.8634752,172.44,172.38,18.7379852]
[1729766574469,18.7379852,172.43,172.38,18.7379852]
[1729766575147,18.9889652,172.42,172.35,15.4156]
[1729766575457,18.7379852,172.41,172.36,18.7379852]
[1729766575968,18.9889652,172.42,172.36,18.7379852]
[1729766576141,0.25098,172.42,172.37,18.7379852]
[1729766577868,0.25098,172.42,172.39,18.7379852]
[1729766581352,0.25098,172.42,172.4,18.7379852]
[1729766581671,6.1092,172.46,172.41,18.7379852]
[1729766581866,6.1092,172.46,172.43,18.7379852]
[1729766582171,6.0409322,172.45,172.42,18.7379852]
[1729766582974,0.12549,172.44,172.42,18.7379852]
[1729766585273,0.12549,172.44,172.43,18.7379852]
[1729766590864,6.5597,172.51,172.43,18.7379852]
[1729766591063,6.5597,172.51,172.46,18.7379852]
[1729766591359,21.83609806,172.49,172.45,18.7379852]
[1729766592153,0.25098,172.48,172.45,18.7379852]
[1729766600468,0.25098,172.48,172.46,18.7379852]
[1729766601362,15.428,172.53,172.47,18.7379852]
[1729766601577,15.428,172.53,172.51,18.7379852]
[1729766601784,6.03884631,172.52,172.51,18.7379852]
[1729766601973,6.03884631,172.52,172.5,18.7379852]
[1729766602286,6.03884631,172.52,172.49,18.7379852]
[1729766602461,6.03884631,172.52,172.48,18.7379852]
[1729766602664,0.25098,172.51,172.48,18.7379852]
[1729766605469,0.25098,172.51,172.49,18.7379852]
[1729766606084,0.12549,172.51,172.5,18.7379852]
[1729766606267,6.03884631,172.52,172.5,18.7379852]
[1729766606468,6.16433631,172.52,172.51,18.7379852]
[1729766607677,6.16433631,172.52,172.5,18.7379852]
[1729766607875,6.03884631,172.52,172.51,18.7379852]
[1729766608472,6.03884631,172.52,172.5,18.7379852]
[1729766611687,6.03884631,172.52,172.49,18.7379852]
[1729766614792,0.25098,172.51,172.41,15.7291]
[1729766614971,0.25098,172.51,172.47,18.7379852]
[1729766615172,0.25098,172.51,172.41,15.7291]
[1729766615173,18.9889652,172.51,172.41,15.7291]
[1729766615499,0.12549,172.49,172.46,18.7379852]
[1729766616489,0.25098,172.49,172.46,18.7379852]
[1729766616994,0.25098,172.49,172.45,18.7379852]
[1729766617508,0.25098,172.49,172.46,18.7379852]
[1729766623087,0.25098,172.49,172.45,18.7379852]
[1729766626105,0.25098,172.49,172.46,18.7379852]
[1729766628402,0.25098,172.49,172.47,18.7379852]
[1729766629780,0.12549,172.49,172.48,18.7379852]
[1729766630605,0.12549,172.49,172.47,18.7379852]
[1729766632897,0.12549,172.49,172.48,18.7379852]
[1729766634905,6.03830331,172.5,172.48,18.7379852]
[1729766635108,6.03830331,172.5,172.49,18.7379852]
[1729766635308,6.16379331,172.5,172.48,18.7379852]
[1729766638406,6.16379331,172.5,172.47,18.7379852]
[1729766639509,6.16379331,172.5,172.41,15.7291]
[1729766639707,6.16379331,172.5,172.46,18.7379852]
[1729766640704,6.16379331,172.5,172.47,18.7379852]
[1729766645018,6.16379331,172.5,172.46,18.7379852]